{"text_format":"1","workbook":"xlsx","n_sheets":7,"sheets":["【元】チェックリスト","チェックリスト","Sheet2","WBS","RawData_チェックリストの入力値","運用フロー図（現状）","運用フロー図（将来）"],"not_rendered":{"charts":0,"images":2,"macros":1,"external_links":1,"defined_names":19,"comments":0,"pivot_tables":0},"unopened":[],"bounds":{"document_bytes":16777216,"sheet_cells":100000,"rows_first":2000,"rows_last":500,"rows_between":2000,"halvings":0,"cell_chars":16384,"cell_head_chars":4096},"cells_cut":0,"cells_raw":0,"read":"whole","date_system":"1900"}

{"sheet":"【元】チェックリスト","index":0,"n_rows":125,"n_cols":27,"rows_kept":125,"cut":false,"hidden":true,"merged":[[55,3,56,23],[28,8,29,23],[36,10,36,23]]}
["オンライン指定申請準備のためのチェックリスト",null,null,null,null,null,null,null,null,null,null,null,null,null,null,null,null,null,null,null,null,"択一",null,null,null,"補足説明（内部用、「WBS」シート）"]
[null,null,null,null,null,null,null,null,null,null,null,null,null,null,null,null,null,null,null,null,null,"複数選択可"]
["Ⅰ","基本情報",null,null,null,null,null,null,null,null,null,null,null,null,null,null,null,null,null,null,null,"半角数字で入力"]
[null,"(1)","地方公共団体の種類",null,null,null,null,null,null,null,null,null,null,null,null,null,null,null,null,null,null,"自由記述",null,null,null,"1：J列"]
[null,null,null,null,1,"都道府県",null,null,null,null,null,null,null,null,null,null,null,null,null,null,null,null,null,null,null,"2～8：K列"]
[null,null,null,null,2,"指定都市"]
[null,null,null,null,3,"中核市"]
[null,null,null,null,4,"施行時特例市"]
[null,null,null,null,5,"その他の市"]
[null,null,null,null,6,"町村"]
[null,null,null,null,7,"特別区"]
[null,null,null,null,8,"その他（広域連合、事務組合等）"]
[]
[null,"(2)","現在、想定しているシステム導入時期",null,null,null,null,null,null,null,null,null,null,null,null,null,null,null,null,null,null,null,null,null,null,"W列"]
[null,null,null,"令和",null,"年",null,"月"]
[]
[null,"(3)","都道府県・市町村の委任関係の整理"]
[null,null,null,null,1,"都道府県や市町村独自で権限移譲をしているサービスがある",null,null,null,null,null,null,null,null,null,null,null,null,null,null,null,null,null,null,null,"48行目","都道府県・市町村の委任関係の整理"]
[null,null,null,null,null,"→","本システム導入前に、厚生労働省（ヘルプデスク）に権限移譲先の自治体を連絡する必要がある",null,null,null,null,null,null,null,null,null,null,null,null,null,null,null,null,null,null,"49行目","（委任がある場合）サービス種類別指定権限の整理"]
[null,null,null,null,null,"→","連絡時期",null,"令和",null,"年",null,"月"]
[null,null,null,null,2,"都道府県や市町村独自で権限移譲をしているサービスはない"]
[null,null,null,null,null,"→","本システム導入前に、厚生労働省（ヘルプデスク）に権限移譲先の自治体を提出する必要はない"]
[null,"(4)","電子申請届出システムの適用範囲（指定・申請の範囲）"]
[null,null,null,null,1,"全種類の申請・届出を対象として開始する予定である"]
[null,null,null,null,2,"一部の種類の指定・申請のみを対象として開始する予定である"]
[null,null,null,null,null,"→",null,1,"新規指定申請"]
[null,null,null,null,null,null,null,2,"変更届出（介護保険事業の変更届出、法人情報に係る一括変更届出）"]
[null,null,null,null,null,null,null,3,"更新申請"]
[null,null,null,null,null,null,null,4,"その他（再開届出、廃止・休止届出、指定辞退届出、指定を不要とする旨の届出、介護老人保健施設・介護医療院（開設許可事項変更申請、管理者承認申請、広告事項許可申請）、指定介護療養型医療施設指定変更申請）"]
[]
[null,null,null,null,null,null,null,5,"加算に関する届出"]
[null,null,null,null,null,null,null,6,"他法制度基づく申請届出（介護保険法以外の法制度に基づく申請届出を行う機能）"]
[]
[null,"(5)","電子申請届出システムの適用範囲（対象サービスの範囲）"]
[null,null,null,null,1,"全サービス種類を対象として開始する予定である"]
[null,null,null,null,2,"一部のサービス種類を対象として開始する予定である"]
[null,null,null,null,null,"→","対象とするサービス種類"]
[]
["Ⅱ","WBS作成のための状況確認（対応必要有無）"]
[null,"(1)","電子申請の受付開始時期（目安）の決定"]
[null,null,"1)","（必要に応じた）電子申請を可能とする自治体の条例・規則等の見直し"]
[null,null,null,null,1,"自治体全体として電子申請を可能とする条例・規則等が既に制定されている"]
[null,null,null,null,null,"→","本システム導入前に、電子申請を可能とする条例・規則等の見直しを行う必要はない"]
[null,null,null,null,2,"介護保険に関する条例・規則等にて、電子申請を可能としている"]
[null,null,null,null,null,"→","本システム導入前に、電子申請を可能とする条例・規則等の見直しを行う必要はない"]
[null,null,null,null,3,"自治体全体または介護保険に関する電子申請を可能とする条例・規則等が制定されていない"]
[null,null,null,null,null,"→",null,"1","指定申請の手続き方法を条例・規則で示している"]
[null,null,null,null,null,null,null,null,"→","本システム導入前に、電子申請を可能とする条例・規則等の見直しを行う必要がある",null,null,null,null,null,null,null,null,null,null,null,null,null,null,null,"9~13行目"]
[null,null,null,null,null,null,null,null,"→","見直しに必要な期間の目安",null,null,null,null,"か月",null,null,null,null,null,null,null,null,null,null,"9行目に色塗り"]
[null,null,null,null,null,null,null,null,null,"※「規則・条例案の作成、議会への提出、議会の開催・議決、公布」の全体にかかる期間の目安をご記入ください"]
[null,null,null,null,null,null,null,2,"指定申請の手続き方法を条例・規則で示していない"]
[null,null,null,null,null,null,null,null,"→","本システム導入前に、電子申請を可能とする条例・規則等の見直しを行う必要はない"]
[]
[null,null,"2)","（必要に応じた）標準様式例への改定"]
[null,null,null,"※厚生労働省の標準様式例については、以下のホームページを参照してください。"]
[null,null,null,"厚生労働省>その他>11．指定居宅サービス事業所、介護保険施設、指定介護予防サービス事業所、 指定地域密着型サービス事業所、指定地域密着型介護予防サービス事業所、指定居宅介護支援事業所 及び介護予防・日常生活支援総合事業の指定に関する様式例について"]
[]
[null,null,null,"https://www.mhlw.go.jp/stf/seisakunitsuite/bunya/hukushi_kaigo/kaigo_koureisha/other/index.html"]
[]
[null,null,null,null,1,"指定申請等の様式について、厚生労働省の最新の標準様式例にもとづいている"]
[null,null,null,null,null,"→","本システム導入前に、様式の見直しを行う必要はない"]
[null,null,null,null,2,"指定申請等の様式について、厚生労働省の最新の標準様式例にもとづいていない"]
[null,null,null,null,null,"→","本システム導入前に、様式の見直しを行う必要がある"]
[null,null,null,null,null,"→","見直しに必要な期間の目安",null,null,null,null,"か月"]
[null,null,null,null,null,null,"→",null,1,"様式を条例・規則で示している",null,null,null,null,null,null,null,null,null,null,null,null,null,null,null,"17~21行目"]
[null,null,null,null,null,null,null,null,null,"→","本システム導入前に、指定申請等の様式に関する条例・規則等の見直しを行う必要がある"]
[null,null,null,null,null,null,null,null,null,"→","条例・規則の見直しのために追加で必要な期限の目安",null,null,null,null,null,null,null,null,"か月",null,null,null,null,null,"17行目に色塗り"]
[null,null,null,null,null,null,null,null,2,"様式を条例・規則で示していない"]
[null,null,null,null,null,null,null,null,null,"→","本システム導入前に、指定申請等の様式に関する条例・規則等の見直しを行う必要はない"]
[]
[null,null,"3)","（必要に応じた）添付資料原本の提出方法の見直し"]
[null,null,null,null,1,"指定申請等の添付資料について、原本の提出を求めている資料がある"]
[null,null,null,null,null,"→","本システム導入前に、添付資料の提出方法を見直す必要がある",null,null,null,null,null,null,null,null,null,null,null,null,null,null,null,null,null,null,"27~29行目"]
[null,null,null,null,null,"→","見直しに必要な期間の目安",null,null,null,null,"か月",null,null,null,null,null,null,null,null,null,null,null,null,null,"27行目に色塗り"]
[null,null,null,null,null,null,"→",null,1,"添付書類の原本提出を条例・規則で示している"]
[null,null,null,null,null,null,null,null,null,"→","本システム導入前に、添付書類の原本提出に関する条例・規則等の見直しを行う必要がある",null,null,null,null,null,null,null,null,null,null,null,null,null,null,"30行目"]
[null,null,null,null,null,null,null,null,null,"→","条例・規則の見直しのために追加で必要な期限の目安",null,null,null,null,null,null,null,null,"か月",null,null,null,null,null,"30行目に色塗り"]
[null,null,null,null,null,null,null,null,2,"添付書類の原本提出を条例・規則で示していない"]
[null,null,null,null,null,null,null,null,null,"→","本システム導入前に、添付書類の原本提出に関する条例・規則等の見直しを行う必要はない"]
[null,null,null,null,2,"指定申請等の添付資料について、原本の提出を求めていない"]
[null,null,null,null,null,"→","本システム導入前に、添付資料の提出方法の代替策を検討する必要はない"]
[]
[null,null,"４)","申請受付後の業務フローの整理"]
[null,null,null,null,1,"申請受付後の指定申請について、文書決裁・文書管理システム上で管理している"]
[null,null,null,null,null,"→","本システム導入前に、文書決裁・文書管理システム等との流れの整理を行う必要がある",null,null,null,null,null,null,null,null,null,null,null,null,null,null,null,null,null,null,"38行目"]
[null,null,null,null,null,"→","流れの整理に必要な期間の目安",null,null,null,null,null,"か月",null,null,null,null,null,null,null,null,null,null,null,null,"38行目に色塗り"]
[null,null,null,null,2,"申請受付後の指定申請について、文書決裁・文書管理システムは活用していない"]
[null,null,null,null,null,"→","本システム導入前に、文書決裁・文書管理システム等との流れの整理を行う必要はない"]
[]
[null,null,"５)","都道府県・市町村間の申達の整理"]
[null,null,null,"【Ⅰ(1)「地方公共団体の種類」で、「1」（都道府県）を選択した時のチェック項目】"]
[null,null,null,null,1,"管内の市町村における指定申請の手続きにおいて、市区町村から指定申請等の紙様式の申達を受ける工程がある"]
[null,null,null,null,null,"→","市区町村と、業務工程や申達方法の見直し・調整が必要である",null,null,null,null,null,null,null,null,null,null,null,null,null,null,null,null,null,null,"39~42行目"]
[null,null,null,null,null,"→","見直し・調整に必要な期間の目安",null,null,null,null,null,"か月",null,null,null,null,null,null,null,null,null,null,null,null,"39行目に色塗り"]
[null,null,null,null,2,"管内の市区町村における指定申請の手続きにおいて、市区町村から指定申請等の紙様式の申達を受ける工程はない"]
[null,null,null,null,null,"→","市区町村と、業務工程や申達方法の見直し・調整は不要である"]
[]
[null,null,null,"【Ⅰ(1)「地方公共団体の種類」で、「1」（都道府県）以外を選択した時のチェック項目】"]
[null,null,null,null,1,"指定申請の手続きに当たって、管轄都道府県へ指定申請等の様式の紙を進達している"]
[null,null,null,null,null,"→","管轄都道府県と、業務工程や申達方法の見直し・調整が必要である",null,null,null,null,null,null,null,null,null,null,null,null,null,null,null,null,null,null,"39~42行目"]
[null,null,null,null,null,"→","見直し・調整に必要な期間の目安",null,null,null,null,null,"か月",null,null,null,null,null,null,null,null,null,null,null,null,"39行目に色塗り"]
[null,null,null,null,2,"指定申請の手続きに当たって、管轄都道府県へ指定申請等の様式の紙を進達していない"]
[null,null,null,null,null,"→","管轄都道府県と、業務工程や申達方法の見直し・調整は不要である"]
[]
[null,null,"６)","端末・ネットワーク環境の確認"]
[null,null,null,null,1,"電子申請届出システムを利用する端末（LGWAN接続可能な端末）の準備、また端末・ネットワークの環境設定が完了していない"]
[null,null,null,null,null,"→","端末の準備、また端末・ネットワークの環境設定が必要である"]
[null,null,null,null,null,"→","端末の準備、また端末・ネットワークの環境設定に必要な期間の目安",null,null,null,null,null,null,null,null,null,null,"か月"]
[null,null,null,null,2,"電子申請届出システムを利用する端末（LGWAN接続可能な端末）の準備、また端末・ネットワークの環境設定が完了している"]
[null,null,null,null,null,"→","端末の準備、また端末・ネットワークの環境設定は不要である"]
[]
[null,null,"７)","（申請事務を外部へ委託している場合）業務フローの整理"]
[null,null,null,null,1,"指定申請の手続きにおいて、外部団体へ委託している事務がある"]
[null,null,null,null,null,"→","委託先と、事務フローの見直し・調整が必要である",null,null,null,null,null,null,null,null,null,null,null,null,null,null,null,null,null,null,"48行目"]
[null,null,null,null,null,"→","見直し・調整に必要な期間の目安",null,null,null,null,null,"か月",null,null,null,null,null,null,null,null,null,null,null,null,"48行目に色塗り"]
[null,null,null,null,2,"指定申請の手続きにおいて、外部団体へ委託している事務はない"]
[null,null,null,null,null,"→","委託先と、事務フローの見直し・調整は不要である"]
[]
[]
["Ⅲ","WBS作成のためのチェック事項"]
[null,"以下の項目のうち、システム導入に向けて実施を予定しているものを選択してください"]
[null,null,"（必要に応じた）手数料徴収方法の見直し",null,null,null,null,null,null,null,null,null,null,null,null,null,null,null,null,null,null,null,null,null,null,"31行目"]
[null,null,"→","見直しに必要な期間の目安",null,null,null,null,null,"か月",null,null,null,null,null,null,null,null,null,null,null,null,null,null,null,"31行目に色塗り"]
[null,null,"必要添付書類の削減等、文書負担削減に関する検討",null,null,null,null,null,null,null,null,null,null,null,null,null,null,null,null,null,null,null,null,null,null,"24~26行目"]
[null,null,"→","検討に必要な期間の目安",null,null,null,null,null,"か月",null,null,null,null,null,null,null,null,null,null,null,null,null,null,null,"24行目に色塗り"]

{"sheet":"チェックリスト","index":1,"n_rows":142,"n_cols":76,"rows_kept":142,"cut":false,"hidden":false,"merged":[[30,8,31,23],[38,10,38,23],[57,3,58,23],[141,4,141,23],[0,22,0,24],[1,22,1,24],[2,22,2,24],[3,22,3,24],[119,0,120,24],[0,26,0,38],[0,39,0,59],[0,60,0,63],[0,64,2,75],[1,26,3,26],[1,27,2,28],[1,29,3,29],[1,30,1,36],[1,37,1,38],[1,39,1,41],[1,42,2,45],[1,46,2,49],[1,50,2,51],[1,52,1,55],[1,56,2,57],[1,58,2,59],[1,60,2,61],[1,62,2,63],[2,30,3,30],[2,31,2,36],[2,37,2,38],[2,39,2,41],[2,52,2,53],[2,54,2,55]]}
["オンライン指定申請準備のためのチェックリスト（CL）",null,null,null,null,null,null,null,null,null,null,null,null,null,null,null,null,null,null,null,"【入力欄】→",null,"択一",null,null,null,"Ⅰ.基本情報",null,null,null,null,null,null,null,null,null,null,null,null,"Ⅱ.WBS作成のための状況確認（対応必要有無）",null,null,null,null,null,null,null,null,null,null,null,null,null,null,null,null,null,null,null,null,"Ⅲ.WBS作成のためのチェック事項",null,null,null,"Ⅳ　伴走支援のご希望"]
["電子申請届出システムのご利用の準備にあたり、貴自治体の現状をもとに必要な準備事項をご確認いただけます。",null,null,null,null,null,null,null,null,null,null,null,null,null,null,null,null,null,null,null,null,null,"複数選択可",null,null,null,"(1)地方公共団体の種類","(2)現在、想定しているシステム導入時期（令和X年X月）",null,"(3)都道府県・市町村の委任関係の整理","(4)電子申請届出システムの適用範囲（指定・申請の範囲）",null,null,null,null,null,null,"(5)電子申請届出システムの適用範囲",null,"(1)電子申請の受付開始時期（目安）の決定",null,null,"2)（必要に応じた）標準様式例への改定",null,null,null,"3)（必要に応じた）添付資料原本の提出方法の見直し",null,null,null,"４)申請受付後の業務フローの整理",null,"５)都道府県・市町村間の代理入力の整理",null,null,null,"６)（申請事務を外部へ委託している場合）業務フローの整理",null,"７)端末・ネットワーク環境の確認",null,"1.（必要に応じた）手数料徴収方法の見直し",null,"2.必要添付書類の削減等、文書負担削減に関する検討"]
["また、入力欄に内容を入力した上で、右側の「WBS作成」を押すと、必要な準備事項のみの「WBS」シートが作成されます。",null,null,null,null,null,null,null,null,null,null,null,null,null,null,null,null,null,null,null,null,null,"半角数字で入力",null,null,null,null,null,null,null,"全種類の指定・申請","一部の種類の指定・申請",null,null,null,null,null,"（対象サービスの範囲）",null,"1)（必要に応じた）電子申請を可能とする自治体の条例・規則等の見直し",null,null,null,null,null,null,null,null,null,null,null,null,"【Ⅰ(1)「地方公共団体の種類」で、「1」（都道府県）を選択した時のチェック項目】",null,"【Ⅰ(1)「地方公共団体の種類」で、「1」（都道府県）以外を選択した時のチェック項目】"]
["「WBS」シートを準備状況の確認のためにご活用いただけます。（貴自治体の状況に合わせて編集いただくことも可能です。）",null,null,null,null,null,null,null,null,null,null,null,null,null,null,null,null,null,null,null,null,null,"自由記述",null,null,null,null,"年","月",null,null,"新規指定申請","変更届出（介護保険事業の変更届出、法人情報に係る一括変更届出）","更新申請","その他","加算に関する届出","他法制度基づく申請届出（介護保険法以外の法制度に基づく申請届出を行う機能）",null,"対象とするサービスと種類（詳細）",null,"指定申請の手続き方法を条例・規則で申請しているか","見直しに必要な期間の目安",null,"見直しに必要な期間の目安","様式を条例・規則で示しているか","条例・規則の見直しのために追加で必要な期限の目安",null,"見直しに必要な期間の目安","添付書類の原本提出を条例・規則で示しているか","条例・規則の見直しのために追加で必要な期限の目安",null,"流れの整理に必要な期間の目安",null,"見直し・調整に必要な期間の目安",null,"見直し・調整に必要な期間の目安",null,"見直し・調整に必要な期間の目安",null,"端末の準備、また端末・ネットワークの環境設定に必要な期間の目安",null,"見直しに必要な期間の目安",null,"検討に必要な期間の目安","（必要に応じた）電子申請を可能とする自治体の条例・規則等の見直し","（必要に応じた）標準様式例への改定","（必要に応じた）必要添付書類の見直し","（必要に応じた）手数料徴収方法の見直し","電子申請を受け付ける申請種類の検討（他法の範囲）","申請受付後の業務フローの整理","都道府県・市町村間の進達の整理","（申請事務を外部へ委託している場合）業務フローの整理","端末・ネットワーク環境の確認","都道府県・市町村の委任関係の整理","その他","その他詳細"]
["Ⅰ","基本情報",null,null,null,null,null,null,null,null,null,null,null,null,null,null,null,null,null,null,null,null,null,null,null,null,{"$f":"チェックリスト!$D$7","v":0},{"$f":"チェックリスト!$E$17","v":0},{"$f":"チェックリスト!$G$17","v":0},{"$f":"チェックリスト!$D$20","v":0},{"$f":"チェックリスト!$D$26","v":0},{"$f":"チェックリスト!$G$28","v":0},{"$f":"チェックリスト!$G$29","v":0},{"$f":"チェックリスト!$G$30","v":0},{"$f":"チェックリスト!$G$31","v":0},{"$f":"チェックリスト!$G$33","v":0},{"$f":"チェックリスト!$G$34","v":0},{"$f":"チェックリスト!$D$37","v":0},{"$f":"チェックリスト!$K$39&\"\"","v":""},{"$f":"チェックリスト!$D$44","v":0},{"$f":"チェックリスト!$G$49","v":0},{"$f":"チェックリスト!$N$51","v":0},{"$f":"チェックリスト!$D$62","v":0},{"$f":"チェックリスト!$K$66","v":0},{"$f":"チェックリスト!$H$67","v":0},{"$f":"チェックリスト!$S$69","v":0},{"$f":"チェックリスト!$D$74","v":0},{"$f":"チェックリスト!$K$76","v":0},{"$f":"チェックリスト!$H$77","v":0},{"$f":"チェックリスト!$S$79","v":0},{"$f":"チェックリスト!$D$86","v":0},{"$f":"チェックリスト!$L$88","v":0},{"$f":"チェックリスト!$D$94","v":0},{"$f":"チェックリスト!$L$96","v":0},{"$f":"チェックリスト!$D$101","v":0},{"$f":"チェックリスト!$L$103","v":0},{"$f":"チェックリスト!$D$108","v":0},{"$f":"チェックリスト!$L$110","v":0},{"$f":"チェックリスト!$D$115","v":0},{"$f":"チェックリスト!$Q$117","v":0},{"$f":"チェックリスト!$C$124","v":0},{"$f":"チェックリスト!$J$125","v":0},{"$f":"チェックリスト!$C$126","v":0},{"$f":"チェックリスト!$J$127","v":0},{"$f":"チェックリスト!$B$132","v":0},{"$f":"チェックリスト!$B$133","v":0},{"$f":"チェックリスト!$B$134","v":0},{"$f":"チェックリスト!$B$135","v":0},{"$f":"チェックリスト!$B$136","v":0},{"$f":"チェックリスト!$B$137","v":0},{"$f":"チェックリスト!$B$138","v":0},{"$f":"チェックリスト!$B$139","v":0},{"$f":"チェックリスト!$B$140","v":0},{"$f":"チェックリスト!$B$141","v":0},{"$f":"チェックリスト!$B$142","v":0},{"$f":"チェックリスト!$E$142&\"\"","v":""}]
[null,"(1)","地方公共団体の種類"]
[null,null,null,null,1,"都道府県"]
[null,null,null,null,2,"指定都市"]
[null,null,null,null,3,"中核市"]
[null,null,null,null,4,"施行時特例市"]
[null,null,null,null,5,"その他の市"]
[null,null,null,null,6,"町村"]
[null,null,null,null,7,"特別区"]
[null,null,null,null,8,"その他（広域連合、事務組合等）"]
[]
[null,"(2)","現在、想定しているシステム導入時期"]
[null,null,null,"令和",null,"年",null,"月"]
[]
[null,"(3)","都道府県・市町村の委任関係の整理"]
[null,null,null,null,1,"都道府県や市町村独自で権限移譲をしているサービスがある"]
[null,null,null,null,null,"→","本システム導入前に、厚生労働省（ヘルプデスク）に権限移譲先の自治体を連絡する必要がある（申請先情報マスタの登録）"]
[null,null,null,null,2,"都道府県や市町村独自で権限移譲をしているサービスはない"]
[null,null,null,null,null,"→","本システム導入前に、厚生労働省（ヘルプデスク）に権限移譲先の自治体を提出する必要はない"]
[]
[null,"(4)","電子申請届出システムの適用範囲（指定・申請の範囲）"]
[null,null,null,null,1,"全種類の申請・届出を対象として開始する予定である"]
[null,null,null,null,2,"一部の種類の指定・申請のみを対象として開始する予定である"]
[null,null,null,null,null,"→",null,1,"新規指定申請"]
[null,null,null,null,null,null,null,2,"変更届出（介護保険事業の変更届出、法人情報に係る一括変更届出）"]
[null,null,null,null,null,null,null,3,"更新申請"]
[null,null,null,null,null,null,null,4,"その他（再開届出、廃止・休止届出、指定辞退届出、指定を不要とする旨の届出、介護老人保健施設・介護医療院（開設許可事項変更申請、管理者承認申請、広告事項許可申請）、指定介護療養型医療施設指定変更申請）"]
[]
[null,null,null,null,null,null,null,5,"加算に関する届出"]
[null,null,null,null,null,null,null,6,"他法制度基づく申請届出（介護保険法以外の法制度に基づく申請届出を行う機能）"]
[]
[null,"(5)","電子申請届出システムの適用範囲（対象サービスの範囲）"]
[null,null,null,null,1,"全サービス種類を対象として開始する予定である"]
[null,null,null,null,2,"一部のサービス種類を対象として開始する予定である"]
[null,null,null,null,null,"→","対象とするサービス種類"]
[]
["Ⅱ","WBS作成のための状況確認（対応必要有無）"]
[null,"(1)","電子申請の受付開始時期（目安）の決定"]
[null,null,"1)","（必要に応じた）電子申請を可能とする自治体の条例・規則等の見直し"]
[null,null,null,null,1,"自治体全体として電子申請を可能とする条例・規則等が既に制定されている"]
[null,null,null,null,null,"→","本システム導入前に、電子申請を可能とする条例・規則等の見直しを行う必要はない"]
[null,null,null,null,2,"介護保険に関する条例・規則等にて、電子申請を可能としている"]
[null,null,null,null,null,"→","本システム導入前に、電子申請を可能とする条例・規則等の見直しを行う必要はない"]
[null,null,null,null,3,"自治体全体または介護保険に関する電子申請を可能とする条例・規則等が制定されていない"]
[null,null,null,null,null,"→",null,"1","指定申請の手続き方法を条例・規則で示している"]
[null,null,null,null,null,null,null,null,"→","本システム導入前に、電子申請を可能とする条例・規則等の見直しを行う必要がある"]
[null,null,null,null,null,null,null,null,"→","見直しに必要な期間の目安",null,null,null,null,"か月"]
[null,null,null,null,null,null,null,null,null,"※「規則・条例案の作成、議会への提出、議会の開催・議決、公布」の全体にかかる期間の目安をご記入ください"]
[null,null,null,null,null,null,null,2,"指定申請の手続き方法を条例・規則で示していない"]
[null,null,null,null,null,null,null,null,"→","本システム導入前に、電子申請を可能とする条例・規則等の見直しを行う必要はない"]
[]
[null,null,"2)","（必要に応じた）標準様式例への改定"]
[null,null,null,"※厚生労働省の標準様式例については、以下のホームページを参照してください。"]
[null,null,null,"厚生労働省>その他>11．指定居宅サービス事業所、介護保険施設、指定介護予防サービス事業所、 指定地域密着型サービス事業所、指定地域密着型介護予防サービス事業所、指定居宅介護支援事業所 及び介護予防・日常生活支援総合事業の指定に関する様式例について"]
[]
[null,null,null,"https://www.mhlw.go.jp/stf/seisakunitsuite/bunya/hukushi_kaigo/kaigo_koureisha/other/index.html"]
[]
[null,null,null,null,1,"指定申請等の様式について、厚生労働省の最新の標準様式例にもとづいている"]
[null,null,null,null,null,"→","本システム導入前に、様式の見直しを行う必要はない"]
[null,null,null,null,2,"指定申請等の様式について、厚生労働省の最新の標準様式例にもとづいていない"]
[null,null,null,null,null,"→","本システム導入前に、様式の見直しを行う必要がある"]
[null,null,null,null,null,"→","見直しに必要な期間の目安",null,null,null,null,"か月"]
[null,null,null,null,null,null,"→",null,1,"様式を条例・規則で示している"]
[null,null,null,null,null,null,null,null,null,"→","本システム導入前に、指定申請等の様式に関する条例・規則等の見直しを行う必要がある"]
[null,null,null,null,null,null,null,null,null,"→","条例・規則の見直しのために追加で必要な期限の目安",null,null,null,null,null,null,null,null,"か月"]
[null,null,null,null,null,null,null,null,2,"様式を条例・規則で示していない"]
[null,null,null,null,null,null,null,null,null,"→","本システム導入前に、指定申請等の様式に関する条例・規則等の見直しを行う必要はない"]
[]
[null,null,"3)","（必要に応じた）添付資料原本の提出方法の見直し"]
[null,null,null,null,1,"指定申請等の添付資料について、原本の提出を求めている資料がある"]
[null,null,null,null,null,"→","本システム導入前に、添付資料の提出方法を見直す必要がある"]
[null,null,null,null,null,"→","見直しに必要な期間の目安",null,null,null,null,"か月"]
[null,null,null,null,null,null,"→",null,1,"添付書類の原本提出を条例・規則で示している"]
[null,null,null,null,null,null,null,null,null,"→","本システム導入前に、添付書類の原本提出に関する条例・規則等の見直しを行う必要がある"]
[null,null,null,null,null,null,null,null,null,"→","条例・規則の見直しのために追加で必要な期限の目安",null,null,null,null,null,null,null,null,"か月"]
[null,null,null,null,null,null,null,null,2,"添付書類の原本提出を条例・規則で示していない"]
[null,null,null,null,null,null,null,null,null,"→","本システム導入前に、添付書類の原本提出に関する条例・規則等の見直しを行う必要はない"]
[null,null,null,null,2,"指定申請等の添付資料について、原本の提出を求めていない"]
[null,null,null,null,null,"→","本システム導入前に、添付資料の提出方法の代替策を検討する必要はない"]
[]
[null,null,"４)","申請受付後の業務フローの整理"]
[null,null,null,null,1,"申請受付後の指定申請について、文書決裁・文書管理システム上で管理している"]
[null,null,null,null,null,"→","本システム導入前に、文書決裁・文書管理システム等との流れの整理を行う必要がある"]
[null,null,null,null,null,"→","流れの整理に必要な期間の目安",null,null,null,null,null,"か月"]
[null,null,null,null,2,"申請受付後の指定申請について、文書決裁・文書管理システムは活用していない"]
[null,null,null,null,null,"→","本システム導入前に、文書決裁・文書管理システム等との流れの整理を行う必要はない"]
[]
[null,null,"５)","都道府県・市町村間の代理入力の整理"]
[null,null,null,"【Ⅰ(1)「地方公共団体の種類」で、「1」（都道府県）を選択した時のチェック項目】"]
[null,null,null,null,1,"管内の市町村における指定申請の手続きにおいて、市区町村から指定申請等の紙様式の進達を受ける工程がある"]
[null,null,null,null,null,"→","市区町村と、業務工程や進達方法の見直し・調整が必要である"]
[null,null,null,null,null,"→","見直し・調整に必要な期間の目安",null,null,null,null,null,"か月"]
[null,null,null,null,2,"管内の市区町村における指定申請の手続きにおいて、市区町村から指定申請等の紙様式の進達を受ける工程はない"]
[null,null,null,null,null,"→","市区町村と、業務工程や進達方法の見直し・調整は不要である"]
[]
[null,null,null,"【Ⅰ(1)「地方公共団体の種類」で、「1」（都道府県）以外を選択した時のチェック項目】"]
[null,null,null,null,1,"指定申請の手続きに当たって、管轄都道府県へ指定申請等の様式の紙を進達している"]
[null,null,null,null,null,"→","管轄都道府県と、業務工程や進達方法の見直し・調整が必要である"]
[null,null,null,null,null,"→","見直し・調整に必要な期間の目安",null,null,null,null,null,"か月"]
[null,null,null,null,2,"指定申請の手続きに当たって、管轄都道府県へ指定申請等の様式の紙を進達していない"]
[null,null,null,null,null,"→","管轄都道府県と、業務工程や進達方法の見直し・調整は不要である"]
[]
[null,null,"６)","（申請事務を外部へ委託している場合）業務フローの整理"]
[null,null,null,null,1,"指定申請の手続きにおいて、外部団体へ委託している事務がある"]
[null,null,null,null,null,"→","委託先と、事務フローの見直し・調整が必要である"]
[null,null,null,null,null,"→","見直し・調整に必要な期間の目安",null,null,null,null,null,"か月"]
[null,null,null,null,2,"指定申請の手続きにおいて、外部団体へ委託している事務はない"]
[null,null,null,null,null,"→","委託先と、事務フローの見直し・調整は不要である"]
[]
[null,null,"７)","端末・ネットワーク環境の確認"]
[null,null,null,null,1,"電子申請届出システムを利用する端末（LGWAN接続可能な端末）の準備、また端末・ネットワークの環境設定が完了していない"]
[null,null,null,null,null,"→","端末の準備、また端末・ネットワークの環境設定が必要である"]
[null,null,null,null,null,"→","端末の準備、また端末・ネットワークの環境設定に必要な期間の目安",null,null,null,null,null,null,null,null,null,null,"か月"]
[null,null,null,null,2,"電子申請届出システムを利用する端末（LGWAN接続可能な端末）の準備、また端末・ネットワークの環境設定が完了している"]
[null,null,null,null,null,"→","端末の準備、また端末・ネットワークの環境設定は不要である"]
["電子申請届出システムのヘルプデスクのメールアドレス（helpdesk_shinsei@kaigokensaku.mhlw.go.jp）が送信可能か、事前にシステム管理部署へのご確認をお願い致します。特にLGWAN接続可能な端末から上記メールアドレスに送信する場合は、令和4年5月にLGWANよりシステム管理部署に発出された設定依頼が実施されている必要があります。未実施の場合は送信エラーとなりますのでご注意ください。"]
[]
["Ⅲ","WBS作成のためのチェック事項"]
[null,"以下の項目のうち、システム導入に向けて実施を予定しているものを選択してください"]
[null,"(1)",null,"（必要に応じた）手数料徴収方法の見直し"]
[null,null,null,"→","見直しに必要な期間の目安",null,null,null,null,null,"か月"]
[null,"(2)",null,"必要添付書類の削減等、文書負担削減に関する検討"]
[null,null,null,"→","検討に必要な期間の目安",null,null,null,null,null,"か月"]
[]
["Ⅳ　伴走支援のご希望"]
[null,"以下のうち、「介護サービス情報公表システムを活用したオンラインによる指定申請機能の活用促進のための調査研究」（実施主体：三菱総合研究所）による伴走支援を"]
[null,"希望される項目をお選びください。"]
[null,null,"（必要に応じた）電子申請を可能とする自治体の条例・規則等の見直し"]
[null,null,"（必要に応じた）標準様式例への改定"]
[null,null,"（必要に応じた）必要添付書類の見直し"]
[null,null,"（必要に応じた）手数料徴収方法の見直し"]
[null,null,"電子申請を受け付ける申請種類の検討（他法の範囲）"]
[null,null,"申請受付後の業務フローの整理"]
[null,null,"都道府県・市町村間の進達の整理"]
[null,null,"（申請事務を外部へ委託している場合）業務フローの整理"]
[null,null,"端末・ネットワーク環境の確認"]
[null,null,"都道府県・市町村の委任関係の整理"]
[null,null,"その他"]

{"sheet":"Sheet2","index":2,"n_rows":11,"n_cols":7,"rows_kept":11,"cut":false,"hidden":true,"merged":[[2,1,2,4],[2,5,2,6]]}
[]
[null,"Ⅱ-(1)ー3)"]
[null,"チェックリストシートの入力値",null,null,null,"WBSシートの表示"]
[null,"指定申請等の添付資料について、原本の提出を求めている資料の有無","見直しに必要な月数","様式を条例・規則","見直しに必要な追加月数","添付資料原本の提出方法の見直し","色付け"]
[null,"D74","K76","H77","S79","27～30行目","27行目？"]
[null,"入力なし","入力如何に関わらず","入力如何に関わらず","入力如何に関わらず","表示","なし"]
[null,1,"入力なし","入力なし","入力なし","表示","なし"]
[null,1,3,"入力なし","入力なし","表示","P27～R27(3か月）"]
[null,1,3,1,"入力なし","表示","P27～R27(3か月）"]
[null,1,3,1,4,"表示","P27～V27(7か月）"]
[null,2,"入力如何に関わらず","入力如何に関わらず","入力如何に関わらず","非表示","なし"]

{"sheet":"WBS","index":3,"n_rows":66,"n_cols":30,"rows_kept":66,"cut":false,"hidden":false,"merged":[[3,15,3,27],[51,5,51,6],[52,5,52,6],[3,13,4,13],[3,14,4,14],[3,7,3,8],[22,4,25,4],[22,5,22,6],[42,5,42,6],[16,5,16,6],[6,3,6,4],[8,5,8,6],[3,2,4,2],[3,3,4,3],[3,4,4,4],[3,5,4,6],[5,2,5,4]]}
[]
[null,null,"オンライン指定申請のためのWBS"]
[null,null,null,null,null,null,null,"↓ ※電子申請届出システムの適用範囲を広げる際に、再度確認が必要となる項目"]
[null,null,"分類","大項目","中項目","小項目",null,"再確認が必要な項目※",null,"種類",null,"自治体",null,"チェック","カスタマイズに必要な情報","スケジュール",null,null,null,null,null,null,null,null,null,null,null,null,"参考資料"]
[null,null,null,null,null,null,null,"申請・届出の種類を拡大する場合","事業者の範囲を拡大する場合","必須","選択","都道府県","市区町村",null,null,"12カ月前","11カ月前","10カ月前","9カ月前","8カ月前","7カ月前","6カ月前","5カ月前","4カ月前","3カ月前","2カ月前","1カ月前","電子申請受付開始","手引き本文","付属資料"]
[null,null,"マイルストーン",null,null,null,null,null,null,null,null,null,null,null,null,null,null,null,null,null,null,null,null,null,null,null,null,"★"]
[null,null,null,"【都道府県・市区町村】対応事項・課題の整理・検討",null,null,null,"○",null,"○",null,"○","○"]
[null,null,null,null,"電子申請の受付開始時期（目安）の決定",null,null,"○",null,"○",null,"○","○"]
[null,null,null,null,null,"（必要に応じた）電子申請を可能とする自治体の条例・規則等の見直し",null,null,null,null,"○","○","○"]
[null,null,null,null,null,"（CLⅡ-(1)-1)）","規則・条例案の作成",null,null,null,"○","○","○"]
[null,null,null,null,null,null,"規則・条例案の作成・条例案の議会への提出",null,null,null,"○","○","○"]
[null,null,null,null,null,null,"議会の開催・議決",null,null,null,"○","○","○"]
[null,null,null,null,null,null,"規則・条例案の公布",null,null,null,"○","○","○"]
[null,null,null,null,"（必要に応じた）標準様式例への改定",null,null,"○",null,null,"○","○","○"]
[null,null,null,null,"（CLⅡ-(1)-2)）","既存の様式と標準様式例との比較・整理",null,"○",null,null,"○","○","○"]
[null,null,null,null,null,"既存の事業所台帳システム側の項目との比較・整理",null,"○",null,null,"○","○","○"]
[null,null,null,null,null,"（必要に応じた）標準様式例への改定のための規則・条例の改正",null,"○",null,null,"○","○","○"]
[null,null,null,null,null,null,"規則・条例案の作成","○",null,null,"○","○","○"]
[null,null,null,null,null,null,"規則・条例案の作成・条例案の議会への提出","○",null,null,"○","○","○"]
[null,null,null,null,null,null,"議会の開催・議決","○",null,null,"○","○","○"]
[null,null,null,null,null,null,"規則・条例案の公布","○",null,null,"○","○","○"]
[null,null,null,null,"（必要に応じた）必要添付書類の見直し",null,null,"○",null,null,"○","○","○"]
[null,null,null,null,null,"サービス種類別、必要添付書類一覧の整理",null,"○",null,"○",null,"○","○",null,"★"]
[null,null,null,null,null,"必要添付書類の削減等、文書負担削減に関する検討",null,"○",null,null,"○","○","○"]
[null,null,null,null,null,"（CLⅢ-(2)）","検討の結果に応じた、必要添付書類の見直し","○",null,null,"○","○","○"]
[null,null,null,null,null,null,"上記、見直した場合の管内事業所への周知","○",null,null,"○","○","○"]
[null,null,null,null,null,"添付資料原本の提出方法の見直し",null,"○",null,null,"○","○","○"]
[null,null,null,null,null,"（CLⅡ-(1)-3)）","原本の提出を求めている書類の検討","○",null,null,"○","○","○"]
[null,null,null,null,null,null,"原本の提出を求めている書類の見直し（登記情報提供サービスの活用を含む）","○",null,null,"○","○","○"]
[null,null,null,null,null,null,"（必要に応じた）原本の提出を求めている書類に関する規則・条例の改正","○",null,null,"○","○","○"]
[null,null,null,null,"（必要に応じた）手数料徴収方法の見直し （CLⅢ-(1)）",null,null,"○",null,null,"○","○","○"]
[null,null,null,null,"自治体内の業務運用手順等の見直し",null,null,"○",null,"○",null,"○","○"]
[null,null,null,null,null,"電子申請を受け付ける申請種類の検討（他法の範囲）",null,"○",null,"○",null,"○","○"]
[null,null,null,null,null,"（CLⅠ-(4)）","検討の結果に応じた、他法担当への説明・周知","○",null,null,"○","○","○"]
[null,null,null,null,null,"申請受付後の業務フローの整理",null,"○",null,"○",null,"○","○"]
[null,null,null,null,null,"（CLⅡ-(1)-4)）","受付～差戻～承認～結果通知の業務フローの整理","○",null,"○",null,"○","○"]
[null,null,null,null,null,null,"提出書類の保管方法や事業所台帳システムへの入力方法の整理","○",null,"○",null,"○","○"]
[null,null,null,null,null,null,"（必要に応じた）文書決裁・文書管理システム等との流れの整理","○",null,null,"○","○","○"]
[null,null,null,null,null,"都道府県・市町村間の代理入力の整理",null,null,null,null,"○","○","○"]
[null,null,null,null,null,"（CLⅡ-(1)-5)）","電子申請受付分に関する代理入力有無の検討",null,null,null,"○","○","○"]
[null,null,null,null,null,null,"（代理入力を続ける場合）検討の結果に応じた、電子申請受付分の申達方法の検討",null,null,"○",null,"○"]
[null,null,null,null,null,null,"（代理入力をやめる場合）検討の結果に応じた、当該市町村への事業所台帳システムの導入",null,null,null,"○",null,"○"]
[null,null,null,null,null,"（申請事務を外部へ委託している場合）業務フローの整理\n（CLⅡ-(1)-6)）",null,"○",null,null,"○","○","○"]
[null,null,null,null,null,"ネットワーク環境の確認・設定",null,null,null,"○",null,"○","○"]
[null,null,null,null,null,"（CLⅡ-(1)-7)）","LGWAN接続端末・行政NW接続端末の整理",null,null,"○",null,"○","○"]
[null,null,null,null,null,null,"電子申請用端末に関する検討",null,null,"○",null,"○","○"]
[null,null,null,null,null,null,"（電子申請用端末と事業所台帳システム利用端末が異なる場合）検討の結果に応じた、電子申請の台帳システムへの入力（連携）の流れの整理",null,null,null,"○","○","○"]
[null,null,null,null,null,null,"検討の結果に応じた、ネットワーク環境の整備",null,null,null,"○","○","○"]
[null,null,null,null,"都道府県・市町村の委任関係の整理",null,null,"○",null,null,"○","○","○"]
[null,null,null,null,"（CLⅠ-(3)）","（委任がある場合）サービス種類別指定権限の整理",null,"○",null,null,"○","○",null,null,"★"]
[null,null,null,null,"介護サービス施設・事業所への周知",null,null,"○","○","○",null,"○","○"]
[null,null,null,null,null,"標準様式例による受付（電子申請受付）の開始時期の決定",null,"○","○","○",null,"○","○"]
[null,null,null,null,null,"ホームページ等による周知（受付開始時期、申請方法等の案内を含む）",null,"○","○","○",null,"○","○"]
[null,null,null,null,"画面表示事項の整理",null,null,"○","○","○",null,"○","○"]
[null,null,null,null,null,"申請受付時期・締切の整理",null,"○","○","○",null,"○","○",null,"★"]
[null,null,null,null,null,"事前相談の必要有無の整理",null,"○","○","○",null,"○","○",null,"★"]
[null,null,null,null,null,"申請の問い合わせ先（連絡先）の整理",null,"○","○","○",null,"○","○",null,"★"]
[null,null,null,null,null,"その他、必要な表示事項の整理",null,"○","○","○",null,"○","○",null,"★"]
[null,null,null,null,"将来的な検討事項：他のシステムとの整理","（必要に応じた）事業所台帳システムの改修",null,"○",null,null,"○","○","○"]
[null,null,null,null,null,null,"（必要に応じた）都道府県と市町村間の調整","○",null,null,"○","○","○"]
[null,null,null,null,null,null,"必要な改修内容の確認（ベンダー側との打合せを含む）","○",null,null,"○","○","○"]
[null,null,null,null,null,null,"必要な改修内容にもとづいた調達仕様書の作成","○",null,null,"○","○","○"]
[null,null,null,null,null,null,"調達・業者決定","○",null,null,"○","○","○"]
[null,null,null,null,null,null,"台帳システムの改修","○",null,null,"○","○","○"]
[null,null,null,null,null,null,"事業所台帳システムとの連携後の業務フローの整理","○",null,null,"○","○","○"]
[null,null,null,"【都道府県・市区町村】カスタマイズに必要な情報の提出",null,null,null,"○",null,"○",null,"○","○"]

{"sheet":"RawData_チェックリストの入力値","index":4,"n_rows":5,"n_cols":50,"rows_kept":5,"cut":false,"hidden":true,"merged":[[2,13,2,15],[1,26,1,29],[1,34,2,35],[1,4,1,10],[1,11,1,12],[1,13,1,15],[1,32,2,33],[1,20,2,23],[0,38,2,49],[1,1,2,2],[2,5,2,10],[2,4,3,4],[1,3,3,3],[1,36,2,37],[0,0,0,12],[0,13,0,33],[0,34,0,37],[1,16,2,19],[1,24,2,25],[2,28,2,29],[2,26,2,27],[1,30,2,31],[1,0,3,0],[2,11,2,12]]}
["Ⅰ.基本情報",null,null,null,null,null,null,null,null,null,null,null,null,"Ⅱ.WBS作成のための状況確認（対応必要有無）",null,null,null,null,null,null,null,null,null,null,null,null,null,null,null,null,null,null,null,null,"Ⅲ.WBS作成のためのチェック事項",null,null,null,"Ⅳ　伴走支援のご希望"]
["(1)地方公共団体の種類","(2)現在、想定しているシステム導入時期（令和X年X月）",null,"(3)都道府県・市町村の委任関係の整理","(4)電子申請届出システムの適用範囲（指定・申請の範囲）",null,null,null,null,null,null,"(5)電子申請届出システムの適用範囲",null,"(1)電子申請の受付開始時期（目安）の決定",null,null,"2)（必要に応じた）標準様式例への改定",null,null,null,"3)（必要に応じた）添付資料原本の提出方法の見直し",null,null,null,"４)申請受付後の業務フローの整理",null,"５)都道府県・市町村間の代理入力の整理",null,null,null,"６)（申請事務を外部へ委託している場合）業務フローの整理",null,"７)端末・ネットワーク環境の確認",null,"1.（必要に応じた）手数料徴収方法の見直し",null,"2.必要添付書類の削減等、文書負担削減に関する検討"]
[null,null,null,null,"全種類の指定・申請","一部の種類の指定・申請",null,null,null,null,null,"（対象サービスの範囲）",null,"1)（必要に応じた）電子申請を可能とする自治体の条例・規則等の見直し",null,null,null,null,null,null,null,null,null,null,null,null,"【Ⅰ(1)「地方公共団体の種類」で、「1」（都道府県）を選択した時のチェック項目】",null,"【Ⅰ(1)「地方公共団体の種類」で、「1」（都道府県）以外を選択した時のチェック項目】"]
[null,"年","月",null,null,"新規指定申請","変更届出（介護保険事業の変更届出、法人情報に係る一括変更届出）","更新申請","その他","加算に関する届出","他法制度基づく申請届出（介護保険法以外の法制度に基づく申請届出を行う機能）",null,"対象とするサービスと種類（詳細）",null,"指定申請の手続き方法を条例・規則で申請しているか","見直しに必要な期間の目安",null,"見直しに必要な期間の目安","様式を条例・規則で示しているか","条例・規則の見直しのために追加で必要な期限の目安",null,"見直しに必要な期間の目安","添付書類の原本提出を条例・規則で示しているか","条例・規則の見直しのために追加で必要な期限の目安",null,"流れの整理に必要な期間の目安",null,"見直し・調整に必要な期間の目安",null,"見直し・調整に必要な期間の目安",null,"見直し・調整に必要な期間の目安",null,"端末の準備、また端末・ネットワークの環境設定に必要な期間の目安",null,"見直しに必要な期間の目安",null,"検討に必要な期間の目安","（必要に応じた）電子申請を可能とする自治体の条例・規則等の見直し","（必要に応じた）標準様式例への改定","（必要に応じた）必要添付書類の見直し","（必要に応じた）手数料徴収方法の見直し","電子申請を受け付ける申請種類の検討（他法の範囲）","申請受付後の業務フローの整理","都道府県・市町村間の進達の整理","（申請事務を外部へ委託している場合）業務フローの整理","端末・ネットワーク環境の確認","都道府県・市町村の委任関係の整理","その他","その他詳細"]
[{"$f":"チェックリスト!$D$7","v":0},{"$f":"チェックリスト!$E$17","v":0},{"$f":"チェックリスト!$G$17","v":0},{"$f":"チェックリスト!$D$20","v":0},{"$f":"チェックリスト!$D$26","v":0},{"$f":"チェックリスト!$G$28","v":0},{"$f":"チェックリスト!$G$29","v":0},{"$f":"チェックリスト!$G$30","v":0},{"$f":"チェックリスト!$G$31","v":0},{"$f":"チェックリスト!$G$33","v":0},{"$f":"チェックリスト!$G$34","v":0},{"$f":"チェックリスト!$D$37","v":0},{"$f":"チェックリスト!$K$39&\"\"","v":""},{"$f":"チェックリスト!$D$44","v":0},{"$f":"チェックリスト!$G$49","v":0},{"$f":"チェックリスト!$N$51","v":0},{"$f":"チェックリスト!$D$62","v":0},{"$f":"チェックリスト!$K$66","v":0},{"$f":"チェックリスト!$H$67","v":0},{"$f":"チェックリスト!$S$69","v":0},{"$f":"チェックリスト!$D$74","v":0},{"$f":"チェックリスト!$K$76","v":0},{"$f":"チェックリスト!$H$77","v":0},{"$f":"チェックリスト!$S$79","v":0},{"$f":"チェックリスト!$D$86","v":0},{"$f":"チェックリスト!$L$88","v":0},{"$f":"チェックリスト!$D$94","v":0},{"$f":"チェックリスト!$L$96","v":0},{"$f":"チェックリスト!$D$101","v":0},{"$f":"チェックリスト!$L$103","v":0},{"$f":"チェックリスト!$D$108","v":0},{"$f":"チェックリスト!$L$110","v":0},{"$f":"チェックリスト!$D$115","v":0},{"$f":"チェックリスト!$Q$117","v":0},{"$f":"チェックリスト!$C$124","v":0},{"$f":"チェックリスト!$J$125","v":0},{"$f":"チェックリスト!$C$126","v":0},{"$f":"チェックリスト!$J$127","v":0},{"$f":"チェックリスト!$B$132","v":0},{"$f":"チェックリスト!$B$133","v":0},{"$f":"チェックリスト!$B$134","v":0},{"$f":"チェックリスト!$B$135","v":0},{"$f":"チェックリスト!$B$136","v":0},{"$f":"チェックリスト!$B$137","v":0},{"$f":"チェックリスト!$B$138","v":0},{"$f":"チェックリスト!$B$139","v":0},{"$f":"チェックリスト!$B$140","v":0},{"$f":"チェックリスト!$B$141","v":0},{"$f":"チェックリスト!$B$142","v":0},{"$f":"チェックリスト!$E$142&\"\"","v":""}]

{"sheet":"運用フロー図（現状）","index":5,"n_rows":4,"n_cols":4,"rows_kept":4,"cut":false,"hidden":false,"merged":[]}
["介護サービス情報公表システムを活用した運用フローについて（現状）"]
[]
["【事業所新規指定申請登録】＜As Is＞",null,"※新規指定申請を例に記載しているが、変更届出、更新申請、その他の申請も同様のフローとなる。"]
["介護事業所職員","指定権者 職員","介護サービス情報公表システム","指定権者 事業所台帳管理システム"]

{"sheet":"運用フロー図（将来）","index":6,"n_rows":4,"n_cols":9,"rows_kept":4,"cut":false,"hidden":false,"merged":[]}
["電子申請届出システムを活用した運用フローのひな型（将来）",null,"※貴自治体のパターンに応じて、ご活用ください。"]
[]
["【事業所新規指定申請登録】＜To Be＞",null,"※新規指定申請を例に記載しているが、変更届出、更新申請、その他の申請も同様のフローとなる。",null,null,null,null,"申達有無によって分ける（自動連携なのか、承認が必要なのか、同じ台帳システムを使っているか）"]
["介護事業所職員","指定権者 職員","電子申請届出システム","介護サービス情報公表システム","指定権者 事業所台帳管理システム","指定権者_文書管理システム","指定権者_紙媒体保管ファイル","都道府県 職員","都道府県_事業所台帳管理システム"]